Cogmind - Beta 13 @@@ ROGUE MODE // 2024.03.31 @ 16:43:17 Player: Ciaphas Result: Destroyed by 66-H2W(R) with Subdweller Machine Gun Performance ------------- Evolutions (0) 0 Regions Visited (2) 400 Robots Destroyed (16) 80 Value Destroyed (440) 440 Prototype IDs (0) 0 Alien Tech Used (0) 0 Bonus (0) 0 TOTAL SCORE: 920 Bonus ------- None Cogmind --------- Core Integrity 0/250 Matter 196/300 Energy 95/100 System Corruption 0% Temperature Cool (9) Movement Core (100) Ox1 Location -10/Subcaves Parts ------- > --- POWER (1) -------- (None) > --- PROPULSION (2) --- (None) > --- UTILITY (2) ------ Structural Scanner Sensor Array > --- WEAPON (2) ------- Maul > --- INVENTORY (5) ---- Signal Interpreter ECM Suite Medium Armor Plating Light Assault Rifle Peak State ------------ > --- POWER ------------ Light Ion Engine > --- PROPULSION ------- Aluminum Leg Aluminum Leg > --- UTILITY ---------- Improved Targeting Computer Medium Armor Plating > --- WEAPON ----------- Mace Maul > --- INVENTORY -------- Structural Scanner Signal Interpreter Assault Rifle Light Assault Rifle Grenade Launcher [Rating: 11] Favorites ----------- Power Light Ion Engine Engine Light Ion Engine Propulsion Aluminum Leg Leg Aluminum Leg Utility Structural Scanner Device Structural Scanner Storage Large Storage Unit Processor Improved Targeting Computer Protection Medium Armor Plating Weapon Assault Rifle Ballistic Gun Assault Rifle Launcher Grenade Launcher Impact Weapon Maul Build | -11 -10 -10 ------- Run | Yrd Mat Sub Slots Evolved . | . . . Power . | . . . Propulsion . | . . . Utility . | . . . Weapon . | . . . Parts Attached 22 | 5 16 1 Power 2 | 1 1 . Engine 2 | 1 1 . Core . | . . . Reactor . | . . . Propulsion 4 | 2 2 . Treads . | . . . Leg 4 | 2 2 . Wheel . | . . . Hover . | . . . Flight . | . . . Utility 7 | . 7 . Device 3 | . 3 . Storage 1 | . 1 . Processor 2 | . 2 . Hackware . | . . . Protection 1 | . 1 . Artifact . | . . . Weapon 9 | 2 6 1 Energy Gun . | . . . Energy Cannon . | . . . Ballistic Gun 3 | 2 1 . Ballistic Cannon . | . . . Launcher 1 | . . 1 Special Weapon . | . . . Impact Weapon 5 | . 5 . Slashing Weapon . | . . . Piercing Weapon . | . . . Special Melee Weapon . | . . . Unidentified Prototypes . | . . . Parts Lost 6 | . 2 4 Power 2 | . 1 1 Propulsion 3 | . 1 2 Utility . | . . . Weapon 1 | . . 1 Highest Loss Streak 4 | . 2 4 To Critical Strikes . | . . . Average Slot Usage (%) 89 | . 89 83 Engine 10 | . 10 9 Leg 27 | . 27 20 Device 12 | . 10 28 Processor 8 | . 9 . Protection 4 | . 4 . Ballistic Gun 15 | . 16 9 Impact Weapon 9 | . 8 14 Naked Turns . | . . . Heaviest Build 24 | 7 24 9 Greatest Support 20 | 20 20 20 Greatest Overweight (x) 1 | . 1 1 Average Overweight (x) . | . . . Largest Inventory Capacity 15 | 5 15 5 Average Capacity 5 | 5 5 5 Most Carried 6 | 2 6 5 Average Carried 4 | . 4 4 Final Capacity 5 | 5 5 5 Final Carried 4 | . 4 4 Class Distribution -------------------- 100% | Mutant Dominant Class ---------------- Mutant | -10/Materials Mutant | -10/Subcaves Resources | -11 -10 -10 ----------- Run | Yrd Mat Sub Matter Collected 525 | 262 262 1 Remotely . | . . . Salvage Created 496 | 48 447 1 Parts 19 | 2 17 . Haulers Intercepted . | . . . Recyclers Shooed 1 | . 1 . Parts Field Recycled . | . . . Retrieved Matter . | . . . Parts Self-Destructed 1 | . . 1 Prevented . | . . . Kills | -11 -10 -10 ------- Run | Yrd Mat Sub Combat Hostiles Destroyed 10 | 1 8 1 Melee 2 | . 1 1 Guns 8 | 1 7 . Classes Destroyed 7 | 1 5 1 Worker 1 | . 1 . Recycler 1 | . 1 . Mechanic 1 | . 1 . Operator 1 | . 1 . Watcher 2 | . 2 . Grunt 9 | 1 8 . Subdweller 1 | . . 1 Best Kill Streak 4 | 1 4 1 Combat Bots Only 2 | 1 2 1 Max Kills in Single Turn 1 | 1 1 1 Gunslinging . | . . . Exploded . | . . . Melee 1 | . 1 1 Uniques/NPCs Destroyed . | . . . Combat | -11 -10 -10 -------- Run | Yrd Mat Sub Hostile Shots Fired 59 | 2 42 15 Missed 21 | 2 16 3 Damage Taken 952 | . 427 525 Core 268 | . 79 189 Absorbed by Shields . | . . . Core Remaining (%) 100 | 100 . . Volleys Fired 41 | 2 31 8 Largest 2 | 2 2 1 Hottest 40 | 40 40 30 Shots Fired 68 | 4 56 8 Gun 62 | 4 56 2 Cannon . | . . . Launcher 6 | . . 6 Special . | . . . Kinetic 62 | 4 56 2 Thermal . | . . . Explosive 6 | . . 6 Electromagnetic . | . . . Robot Hit Streak 13 | 2 13 12 Robot Miss Streak 4 | 1 4 . Penetration Max . | . . . Secondary Targets . | . . . Shots Hit Robots 58 | 2 47 9 Core Hits 22 | 2 18 2 Critical Kills . | . . . Critical Parts Destroyed 1 | . 1 . Critical Strikes 1 | . 1 . Smash 1 | . 1 . Melee Attacks 13 | . 11 2 Impact 13 | . 11 2 Slashing . | . . . Piercing . | . . . Sneak Attacks 6 | . 6 . Combat Hostiles . | . . . Follow-up Attacks 1 | . 1 . Damage Inflicted 1312 | 24 941 347 Guns 526 | 24 487 15 Cannons . | . . . Explosions 303 | . . 303 Melee 482 | . 453 29 Ramming 1 | . 1 . Kinetic 526 | 24 487 15 Thermal . | . . . Explosive 303 | . . 303 Electromagnetic . | . . . Impact 482 | . 453 29 Slashing . | . . . Piercing . | . . . Highest Corruption . | . . . Average Corruption . | . . . Corruption Purged . | . . . Corruption Blocked . | . . . Overload Shots . | . . . Overflow Damage 250 | . 240 10 Projectiles . | . . . Explosions 10 | . . 10 Melee 240 | . 240 . Knockbacks . | . . . Impact . | . . . Kinetic . | . . . Secondary . | . . . Self-Inflicted Damage . | . . . Shots . | . . . Rammed . | . . . Targets Rammed 2 | . 2 . Kicked 2 | . 2 . Crushed . | . . . Highest Temperature 20 | . 20 . Average Temperature 6 | . 6 . Received Heat Transfer 246 | . 192 54 Siege Activations . | . . . Robots Corrupted . | . . . Combat Hostiles . | . . . Parts Fried 3 | . 3 . Impact Corruptions 12 | . 12 . Robots Melted . | . . . Combat Hostiles . | . . . Parts Melted . | . . . Heat Transferred . | . . . Parts Sabotaged . | . . . Parts Stolen . | . . . Parts Stripped . | . . . Power Chain Reactions . | . . . Alert | -11 -10 -10 ------- Run | Yrd Mat Sub Peak Influence 231 | 20 231 . Initial 13 | . 13 . Average 83 | 2 91 . Maximum Alert Level 1 | . 1 . Low Security (%) 94 | 100 93 . Level 1 5 | . 6 . Level 2 . | . . . Level 3 . | . . . Level 4 . | . . . Level 5 . | . . . High Security . | . . . Max Security . | . . . Squads Dispatched 1 | . 1 . Investigation . | . . . Extermination . | . . . Reinforcement 1 | . 1 . Assault . | . . . Garrison . | . . . Intercept . | . . . Searches Triggered . | . . . Construction Impeded . | . . . Haulers Reinforced . | . . . Active Scanning Responses . | . . . Cargo Convoy Interrupts . | . . . Stealth | -11 -10 -10 --------- Run | Yrd Mat Sub Distress Signals 1 | . 1 . Communications Jammed . | . . . Distress Signals . | . . . Times Spotted 23 | 1 17 5 Peak Tracking Total 4 | 1 4 2 Tactical Retreats . | . . . Traps | -11 -10 -10 ------- Run | Yrd Mat Sub Traps Triggered . | . . . Indirectly . | . . . Trap Hack Attempts . | . . . Triggered . | . . . Disarmed . | . . . Reprogrammed . | . . . Reused . | . . . Traps Extracted . | . . . Installed . | . . . Triggered . | . . . Machines | -11 -10 -10 ---------- Run | Yrd Mat Sub Machines Disabled . | . . . Max in Single Turn . | . . . Machines Repaired . | . . . Machines Dismantled . | . . . Machines Sabotaged . | . . . Overloaded Fab Kills . | . . . Hacking | -11 -10 -10 --------- Run | Yrd Mat Sub Machines Accessed 6 | . 6 . Terminals 4 | . 4 . Fabricators . | . . . Repair Stations . | . . . Recycling Units 2 | . 2 . Scanalyzers . | . . . Garrison Access . | . . . Total Hacks 17 | . 17 . Successful 9 | . 9 . Failed 8 | . 8 . Catastrophic 1 | . 1 . Database Lockouts . | . . . Manual 8 | . 8 . Terminals 11 | . 11 . Fabricators . | . . . Repair Stations . | . . . Recycling Units 6 | . 6 . Scanalyzers . | . . . Garrison Access . | . . . Terminal Hacks 5 | . 5 . Record 3 | . 3 . Transport Status 1 | . 1 . Hauler Manifests 1 | . 1 . Fabricator Hacks . | . . . Repair Station Hacks . | . . . Recycling Unit Hacks 3 | . 3 . Report Inventory 2 | . 2 . Retrieve Components 1 | . 1 . Scanalyzer . | . . . Garrison Access Hacks . | . . . Unauthorized Hacks 1 | . 1 . Terminals 1 | . 1 . Botnet 1 | . 1 . Fabricators . | . . . Repair Stations . | . . . Recycling Units . | . . . Scanalyzers . | . . . Garrison Access . | . . . Data Cores Recovered . | . . . Used . | . . . Hacking Detections 6 | . 6 . Full Trace Events . | . . . Feedback Events . | . . . Feedback Blocked . | . . . Robot Schematics Acquired . | . . . Robots Built . | . . . Authchips . | . . . Time . | . . . Total Robot Build Rating . | . . . Part Schematics Acquired . | . . . Parts Built . | . . . Authchips . | . . . Time . | . . . Total Part Build Rating . | . . . Parts Repaired . | . . . Time . | . . . Parts Recycled . | . . . Recycled Matter . | . . . Retrieved Matter . | . . . Retrieved Components 3 | . 3 . Parts Scanalyzed . | . . . Part Schematics Acquired . | . . . Parts Damaged . | . . . Bothacking | -11 -10 -10 ------------ Run | Yrd Mat Sub Used RIF Installer . | . . . Robots Hacked . | . . . Non-combat . | . . . Combat . | . . . Robot Hacks Applied . | . . . Relay Couplers Released . | . . . Fabnet Peak Effective % . | . . . Robots Rewired . | . . . Allies Hacked . | . . . Hacks Repelled . | . . . Allies | -11 -10 -10 -------- Run | Yrd Mat Sub Total Allies . | . . . Largest Group . | . . . Highest-Rated Group . | . . . Highest-Rated Ally . | . . . Total Orders . | . . . Ally Attacks . | . . . Total Damage . | . . . Kills . | . . . Allies Corrupted . | . . . Allies Melted . | . . . Intel | -11 -10 -10 ------- Run | Yrd Mat Sub Robot Analysis Total . | . . . Derelict Logs Recovered 1 | . . 1 Drone Launches . | . . . Drone Recoveries . | . . . Exploration | -11 -10 -10 ------------- Run | Yrd Mat Sub Turns Passed 935 | 75 771 89 Spaces Moved 607 | 58 490 59 Core 29 | 15 . 14 Treads . | . . . Legs 578 | 43 490 45 Wheels . | . . . Hover . | . . . Flight . | . . . Fastest Speed 50 | 50 120 100 Average Speed 119 | 101 122 115 Slowest Speed 190 | 120 190 120 Overloaded Moves . | . . . Propulsion Burnouts . | . . . Robots Hopped . | . . . Cave-ins Triggered . | . . . Exploration Rate (%) 21 | 6 51 8 Regions Visited 2 Branch Regions 1 Pre-discovered Areas . | . . . Known Exits Taken . | . . . Unknown Exits Taken 2 | 1 1 . Scrap Searched . | . . . Spaces Dug 1 | . 1 . Terrain Destroyed 19 | . 1 18 Melee 1 | . 1 . Projectile . | . . . AOE 18 | . . 18 Terrain Rammed . | . . . Walls Destroyed . | . . . Machines Disabled . | . . . Actions | -11 -10 -10 --------- Run | Yrd Mat Sub Total 729 | 68 590 71 Wait 12 | . 12 . Move 605 | 57 489 59 Hop . | . . . Pick Up 14 | 2 12 . Fast Attach 13 | 5 8 . Attach 8 | . 7 1 Detach 9 | . 8 1 Swap 1 | . 1 . Drop 12 | 2 10 . Fire 41 | 2 31 8 Melee 12 | . 10 2 Ram . | . . . Kick 2 | . 2 . Crush . | . . . Escape Stasis . | . . . Rewire . | . . . Trap . | . . . Miscellaneous . | . . . Route ------- -11/Scrapyard -10/Materials (discovered 4 exits: [*Mat x2] / [*Min] / [*Sub]) -10/Subcaves History --------- Turn | Location | Event 2 | -11/Scrapyard | Met Revision 17 58 | -11/Scrapyard | Discovered new exit (range 8) 76 | -11/Scrapyard | Entered Materials 242 | -10/Materials | Discovered new exit (range 13) 294 | -10/Materials | Discovered new exit (range 18) 300 | -10/Materials | Build established: Mutant 815 | -10/Materials | Discovered new exit (range 16) 833 | -10/Materials | Discovered new exit (range 16) 847 | -10/Materials | Entered Subcaves 865 | -10/Subcaves | Learned 4 Materials zone layouts 907 | -10/Subcaves | Ambushed by Subdweller buried in earth 910 | -10/Subcaves | Core integrity fell below 50% 922 | -10/Subcaves | Core integrity fell below 20% 933 | -10/Subcaves | Ambushed by swarm of Subdwellers 936 | -10/Subcaves | Destroyed by 66-H2W(R) with Subdweller Machine Gun Last Messages --------------- 00897_ AI-8Z3(R) destroyed. 00898_ O6-HYS(h) destroyed. 00904_ Aluminum Leg destroyed. 00907_ Lgt. Ion Engine destroyed. 00908_ 82-C2S(R): "ARGHSUB!" 00908_ Subatomizers dissect the Bore Cannon. 00909_ Destroyed Sub. Monowheel. 00909_ OM-20R(R) destroyed. 00915_ The unstable cave ceiling collapses. 00915_ Destroyed Sub. Optics. 00915_ Aluminum Leg destroyed. 00917_ Grenade Launcher destroyed. 00918_ The unstable cave ceiling collapses. 00923_ 82-C2S(R) destroyed. 00926_ Acquired 1 matter. A mess of Twisted Machinery falls from the cavern ceiling. VW-NQB(R) comes tumbling into view. 00935_ 66-H2W(R) emerges from the Twisted Machinery. Map ----- +----------------------------------------------------+ | | | | | | | | | | | | | | | ?????????????????????????????????????????????????? | | ?????????????????????????????????????????????????? | | ?????????????????????????????????????????????????? | | ?????????????????????????????????????????????????? | | ?????????????????????????????????????????????????? | | ?????????????????????????????????????????????????? | | ?????????????????????????????????????????????????? | | ?????????????????????????????????????????????????? | | ?????????????????????????????????????????????????? | | ?????????????????????????????????????????????????? | | ?????????????????????????????????????????????????? | | ?????????????????????????????????????????????????? | | ??????????????##########?????????????????????????? | | ##########????######################?????????????? | | ###########???## #"#################????????? | | ## ###??#### ""## ## #########??????? | | ##??### # ####??????? | | ##? ###### RR ###?????? | | ###### ###### @ ##?????? | | ###### ## ####?????? | | ## ## ## ###???????? | | ### ####??###????????? | | ####; ####??????????????? | | " ##### ###???????????????? | | ######## ###????????????????? | | #####?## # ###????????????????? | | ##???### # ###?????????????????? | | ###?## ######?????????????????? | | ###### "" ## # #####??????????????????? | | ###?## "" ###### ##????????????????????? | | ##"""" " ###### ????????????????????? | | ! " " ####???? ???????????????????? | | ### "" ########???? # ## ??????????????????? | | ####" #######??????? ## ## ?????????????????? | | ##### #####??????????### ?????????????????? | | #########??????????????? # ???????????????????? | | ##?#####???????????????? #####???????????????????? | | ##?????????????????????? #####???????????????????? | | ?????????????????????????????????????????????????? | | ?????????????????????????????????????????????????? | | ?????????????????????????????????????????????????? | | ?????????????????????????????????????????????????? | | ?????????????????????????????????????????????????? | +----------------------------------------------------+ Best States ------------- Heat Dissipation 25 Energy Generation 10 Energy Capacity 125 Matter Stores 300 Matter Capacity 300 Sight Range 18 Robot Scan Range 14 Terrain Scan Density 10 Armor Coverage 225 Evasion (%) 55 Targeting Accuracy 6 Item Schematics ----------------- None Robot Schematics ------------------ None Fabricated ------------ Nothing Alien Tech Used ----------------- None Achievements -------------- None Challenges ------------ None Game ------ Seed GatlingSkeletonCleaver Manual? 0 Play Time 00:23:32 Cumulative 0.3 hours Start 2024.03.31 @ 16:20:27 End 2024.03.31 @ 16:43:17 Sessions 1 Manual Loads 0 Difficulty Rogue Special Mode None Game No. 1 Rogue 1 Adventurer 0 Explorer 0 Win Type - Total 0 Types 0/0/0/0/0/0/0/0/0 Lore% 0 Gallery% 1 Achievement% 21 Wizard Run 0 Options --------- Layout 1 ASCII 0 Keyboard 0 Movement Numpad Keybinds 0 Fullscreen 2 Font 32/Proggy Map View 50x35 Zoom Use 0% Tactical HUD 1 Map Filters NONE Filters NONE Steam 1 RUN: 943b5e28-5a74-43ff-ad6c-5a4c953852d3